bitfinex/quotes_SOLUSD_20241103
["timestamp","ask_amount","ask_price","bid_price","bid_amount"]
[1730600268968,23.87986398,164.33,164.27,17.89456398]
[1730600269374,17.79456398,164.35,164.3,17.89456398]
[1730600269685,17.79456398,164.34,164.3,0.1]
[1730600270076,23.87926398,164.35,164.3,0.1]
[1730600270592,17.79456398,164.36,164.33,0.1]
[1730600270972,0.300979,164.37,164.33,17.89456398]
[1730600271186,0.300979,164.37,164.34,0.1]
[1730600271364,0.300979,164.37,164.34,17.89456398]
[1730600271571,0.300979,164.37,164.34,0.1]
[1730600274388,0.300979,164.37,164.33,17.89456398]
[1730600274581,18.09554298,164.37,164.33,0.1]
[1730600274784,18.09554298,164.37,164.34,0.1]
[1730600275101,0.300979,164.37,164.34,0.1]
[1730600276189,0.300979,164.37,164.34,17.89456398]
[1730600276569,0.300979,164.37,164.34,0.1]
[1730600276876,17.79456398,164.36,164.31,17.89456398]
[1730600277078,6.384879,164.37,164.3,22.4515]
[1730600277079,18.09554298,164.37,164.33,0.1]
[1730600277399,0.300979,164.37,164.34,0.1]
[1730600277579,18.09554298,164.37,164.34,0.1]
[1730600277994,0.300979,164.37,164.34,0.1]
[1730600279378,0.300979,164.37,164.33,17.79456398]
[1730600279585,18.09554298,164.37,164.34,0.1]
[1730600279888,18.09554298,164.37,164.33,0.1]
[1730600280477,18.09554298,164.37,164.34,0.1]
[1730600280478,0.300979,164.37,164.34,0.1]
[1730600280693,17.79456398,164.35,164.3,22.5515]
[1730600280901,17.79456398,164.34,164.31,0.1]
[1730600281476,17.79456398,164.35,164.31,0.1]
[1730600281786,17.79456398,164.35,164.3,40.34606398]
[1730600282093,17.79456398,164.35,164.32,0.1]
[1730600282400,23.87896398,164.36,164.32,0.1]
[1730600282780,18.09554298,164.37,164.33,0.1]
[1730600282979,18.09554298,164.37,164.34,0.1]
[1730600283182,17.79456398,164.36,164.32,0.1]
[1730600283380,17.79456398,164.35,164.33,0.1]
[1730600283790,17.79456398,164.36,164.33,0.1]
[1730600284095,24.17934298,164.37,164.33,0.1]
[1730600284495,17.79456398,164.36,164.33,0.1]
[1730600285192,24.17934298,164.37,164.33,0.1]
[1730600285582,0.300979,164.37,164.35,0.1]
[1730600286083,0.300979,164.37,164.36,0.1]
[1730600286281,0.300979,164.37,164.35,0.1]
[1730600286480,0.300979,164.37,164.36,0.1]
[1730600289382,0.300979,164.37,164.35,0.1]
[1730600289580,0.300979,164.37,164.33,17.79456398]
[1730600289581,18.09554298,164.37,164.33,0.1]
[1730600289785,17.79456398,164.35,164.33,0.1]
[1730600290498,17.79456398,164.36,164.33,0.1]
[1730600291484,17.79456398,164.34,164.3,22.5515]
[1730600293387,6.0845,164.36,164.32,0.1]
[1730600293388,17.79456398,164.35,164.32,0.1]
[1730600294402,17.79456398,164.34,164.32,0.1]
[1730600296100,17.79456398,164.33,164.32,0.1]
[1730600296299,17.79456398,164.34,164.32,0.1]
[1730600296692,17.79456398,164.35,164.32,0.1]
[1730600296910,17.79456398,164.35,164.33,0.1]
[1730600297091,0.300979,164.37,164.36,0.1]
[1730600301921,0.300979,164.37,164.36,17.89456398]
[1730600302289,0.300979,164.37,164.36,0.1]
[1730600307393,18.09554298,164.37,164.34,0.1]
[1730600307589,11.38693039,164.35,164.33,0.1]
[1730600307790,11.38693039,164.34,164.32,0.1]
[1730600309601,17.79289927,164.34,164.32,0.1]
[1730600309930,17.79289927,164.35,164.33,0.1]
[1730600311312,17.79289927,164.34,164.33,0.1]
[1730600311730,17.79289927,164.35,164.33,0.1]
[1730600312413,6.0845,164.36,164.33,0.1]
[1730600312414,17.79289927,164.36,164.33,0.1]
[1730600313498,17.79289927,164.35,164.33,0.1]
[1730600314503,17.79289927,164.34,164.33,0.1]
[1730600315205,47.79289927,164.34,164.3,6.3371]
[1730600315411,17.79289927,164.31,164.28,0.1]
[1730600315719,17.79289927,164.31,164.26,21.9693]
[1730600315720,17.79289927,164.29,164.27,0.1]
[1730600315920,17.79289927,164.28,164.26,6.3326]
[1730600316221,17.79289927,164.29,164.27,0.1]
[1730600317199,17.79289927,164.3,164.27,0.1]
[1730600317401,17.79289927,164.32,164.31,0.1]
[1730600317719,30.0,164.32,164.31,0.1]
[1730600317907,17.79289927,164.35,164.31,0.1]
[1730600318111,17.79289927,164.35,164.33,0.1]
[1730600318612,47.79289927,164.34,164.33,0.1]
[1730600318798,47.79289927,164.34,164.31,0.1]
[1730600319121,17.79289927,164.32,164.27,17.79289927]
[1730600319299,17.79289927,164.32,164.27,20.0]
[1730600319498,30.0,164.34,164.28,17.79289927]
[1730600319499,17.79289927,164.33,164.28,17.79289927]
[1730600319927,30.0,164.34,164.29,20.0]
[1730600320111,30.0,164.34,164.3,17.79289927]
[1730600320307,30.0,164.34,164.31,17.79289927]
[1730600320506,30.0,164.34,164.3,17.79289927]
[1730600321023,17.79289927,164.36,164.3,17.79289927]
[1730600322217,17.79289927,164.36,164.29,15.7367]
[1730600322218,0.300979,164.37,164.32,17.79289927]
[1730600322618,18.09387827,164.37,164.32,17.79289927]
[1730600323117,0.300979,164.37,164.34,6.2326]
[1730600323297,0.300979,164.37,164.34,24.02549927]
[1730600324296,0.300979,164.37,164.35,17.79289927]
[1730600325524,0.300979,164.37,164.34,24.02549927]
[1730600325708,0.300979,164.37,164.34,6.2326]
[1730600325901,18.09387827,164.37,164.34,6.2326]
[1730600326106,17.79289927,164.36,164.34,6.2326]
[1730600326312,18.09387827,164.37,164.34,6.2326]
[1730600328621,18.09387827,164.37,164.31,17.79289927]
[1730600328622,17.79289927,164.36,164.31,17.79289927]
[1730600329124,17.79289927,164.34,164.3,6.134]
[1730600331003,17.79289927,164.33,164.3,6.134]
[1730600331206,17.79289927,164.31,164.26,6.134]
[1730600331426,17.79289927,164.33,164.27,17.79289927]
[1730600332822,17.79289927,164.32,164.27,17.79289927]
[1730600335022,17.79289927,164.34,164.29,17.79289927]
[1730600335227,17.79289927,164.35,164.3,17.79289927]
[1730600335402,17.79289927,164.36,164.31,17.79289927]
[1730600335600,30.0,164.32,164.31,17.79289927]
[1730600335918,17.79289927,164.36,164.3,17.79289927]
[1730600336305,18.09387827,164.37,164.31,17.79289927]
[1730600336505,18.09387827,164.37,164.32,17.79289927]
[1730600336717,18.09387827,164.37,164.31,17.79289927]
[1730600337016,0.300979,164.37,164.33,17.79289927]
[1730600338019,0.300979,164.37,164.34,17.79289927]
[1730600338224,0.300979,164.37,164.35,17.79289927]
[1730600338438,0.300979,164.37,164.34,23.92689927]
[1730600339010,0.300979,164.37,164.35,17.79289927]
[1730600339214,0.300979,164.37,164.34,23.92689927]
[1730600339528,0.300979,164.37,164.35,17.79289927]
[1730600342217,0.300979,164.37,164.34,23.92689927]
[1730600342519,18.09387827,164.37,164.34,6.134]
[1730600344509,0.300979,164.37,164.34,6.134]
[1730600345707,18.09387827,164.37,164.34,6.134]
[1730600345905,18.09387827,164.37,164.32,16.418]
[1730600347425,17.79289927,164.35,164.3,6.2478]
[1730600347728,11.38700466,164.35,164.3,6.2478]
[1730600348030,11.38700466,164.33,164.3,6.2478]
[1730600348409,11.38700466,164.36,164.31,11.38700466]
[1730600348915,17.77178366,164.37,164.31,11.38700466]
[1730600349115,0.300979,164.37,164.32,11.38700466]
[1730600349636,0.300979,164.37,164.35,11.38700466]
[1730600350106,30.0,164.36,164.35,11.38700466]
[1730600351134,0.300979,164.37,164.35,11.38700466]
[1730600351429,0.300979,164.37,164.33,17.63480466]
[1730600351623,17.79153704,164.35,164.3,17.79153704]
[1730600351817,17.79153704,164.33,164.29,6.2478]
[1730600352532,17.79153704,164.34,164.29,24.03933704]
[1730600353829,17.79153704,164.34,164.29,6.2478]
[1730600354041,17.79153704,164.33,164.29,6.2478]
[1730600354208,17.79153704,164.34,164.29,24.03933704]
[1730600354411,6.0846,164.35,164.3,17.79153704]
[1730600354627,23.87613704,164.35,164.3,17.79153704]
[1730600355032,23.87613704,164.35,164.29,24.03933704]
[1730600357014,17.79153704,164.34,164.29,24.03933704]
[1730600358035,23.87623704,164.35,164.3,17.79153704]
[1730600358340,23.87573704,164.36,164.31,17.79153704]
[1730600358628,18.09251604,164.37,164.32,17.79153704]
[1730600358833,0.300979,164.37,164.33,17.79153704]
[1730600359017,30.0,164.34,164.33,17.79153704]
[1730600359526,0.300979,164.37,164.34,20.0]
[1730600359726,0.300979,164.37,164.34,37.79153704]
[1730600359929,0.300979,164.37,164.35,17.79153704]
[1730600360226,30.0,164.36,164.35,17.79153704]
[1730600360425,0.300979,164.37,164.35,17.79153704]
[1730600360811,0.300979,164.37,164.34,37.79153704]
[1730600362226,0.300979,164.37,164.34,20.0]
[1730600362528,0.300979,164.37,164.34,17.79153704]
[1730600363132,0.300979,164.37,164.36,17.79153704]
[1730600364124,0.300979,164.37,164.34,17.79153704]
[1730600364334,0.300979,164.37,164.34,20.0]
[1730600365327,0.300979,164.37,164.33,17.79153704]
[1730600365517,24.17641604,164.37,164.31,17.79153704]
[1730600365713,17.79153704,164.35,164.29,24.03933704]
[1730600366118,17.79153704,164.35,164.3,17.79153704]
[1730600368341,53.87583704,164.36,164.3,17.79153704]
[1730600370023,17.79153704,164.35,164.3,17.79153704]
[1730600370224,30.0,164.34,164.3,17.79153704]
[1730600371846,17.79153704,164.35,164.3,17.79153704]
[1730600372150,6.0843,164.36,164.29,6.2478]
[1730600372151,17.79153704,164.33,164.29,6.2478]
[1730600372328,17.79153704,164.34,164.29,6.2478]
[1730600373758,17.79153704,164.32,164.27,20.0]
[1730600374044,17.79153704,164.32,164.27,37.79153704]
[1730600375333,17.79153704,164.35,164.3,17.79153704]
[1730600376147,17.79153704,164.35,164.29,17.79153704]
[1730600376331,23.87613704,164.35,164.29,17.79153704]
[1730600376850,17.79153704,164.34,164.29,17.79153704]
[1730600377055,17.79153704,164.33,164.28,17.79153704]
[1730600377635,17.79153704,164.33,164.27,17.79153704]
[1730600378348,17.79153704,164.32,164.27,17.79153704]
[1730600378539,17.79153704,164.3,164.25,6.3862]
[1730600378940,17.79153704,164.3,164.25,24.17773704]
[1730600380437,17.79153704,164.31,164.26,17.79153704]
[1730600382662,23.87763704,164.31,164.26,17.79153704]
[1730600383155,17.79153704,164.3,164.25,24.17773704]
[1730600383459,17.79153704,164.29,164.25,6.3862]
[1730600383660,18.84873028,164.3,164.25,6.3862]
[1730600384655,17.79153704,164.3,164.25,24.17773704]
[1730600386359,23.87763704,164.31,164.25,24.17773704]
[1730600386554,17.79153704,164.3,164.25,24.17773704]
[1730600386776,17.79153704,164.3,164.25,6.3862]
[1730600389343,17.79153704,164.3,164.25,24.17773704]
[1730600389538,23.87763704,164.31,164.26,17.79153704]
[1730600390160,1.05714007,164.32,164.27,17.79153704]
[1730600390356,1.05714007,164.32,164.28,17.79153704]
[1730600390556,30.0,164.29,164.28,17.79153704]
[1730600390946,30.0,164.29,164.27,17.79153704]
[1730600391766,24.93447711,164.32,164.27,17.79153704]
[1730600392455,24.93447711,164.32,164.26,17.79153704]
[1730600393542,24.93447711,164.32,164.27,17.79153704]
[1730600394758,17.79153704,164.3,164.25,24.17773704]
[1730600396060,17.79153704,164.31,164.25,24.17773704]
[1730600396362,23.87773704,164.31,164.25,24.17773704]
[1730600397956,23.87773704,164.31,164.26,17.79153704]
[1730600399647,17.47862614,164.31,164.26,11.39242614]
[1730600400575,11.39242614,164.27,164.23,20.0]
[1730600400866,11.39242614,164.28,164.23,20.0]
[1730600401047,11.39242614,164.29,164.24,11.39242614]
[1730600401451,11.39242614,164.26,164.21,6.0891]
[1730600401787,11.39242614,164.25,164.21,6.0891]
[1730600403151,17.48072614,164.25,164.21,6.0891]
[1730600403370,11.39242614,164.24,164.21,6.0891]
[1730600403554,17.48072614,164.25,164.21,6.0891]
[1730600403750,17.81413672,164.24,164.19,33.25603672]
[1730600405278,18.87235338,164.24,164.19,33.25603672]
[1730600406350,17.81413672,164.26,164.21,17.81413672]
[1730600406960,17.81413672,164.25,164.2,17.81413672]
[1730600407642,23.90263672,164.25,164.2,17.81413672]
[1730600408472,17.81413672,164.23,164.18,17.81413672]
[1730600409056,23.90263672,164.25,164.19,17.81413672]
[1730600409252,17.81413672,164.23,164.18,37.81413672]
[1730600409658,23.90293672,164.24,164.19,17.81413672]
[1730600411464,6.0888,164.24,164.2,17.81413672]
[1730600411660,6.0882,164.26,164.21,17.81413672]
[1730600411864,1.05894969,164.27,164.23,17.81413672]
[1730600412067,30.0,164.24,164.22,17.81413672]
[1730600412268,30.0,164.24,164.21,17.81413672]
[1730600412570,47.81413672,164.24,164.19,17.81413672]
[1730600413155,17.81413672,164.23,164.18,17.81413672]
[1730600413453,30.0,164.22,164.18,17.81413672]
[1730600413864,47.81413672,164.22,164.17,24.45383672]
[1730600414072,36.0893,164.22,164.2,17.81413672]
[1730600414866,30.0,164.22,164.2,17.81413672]
[1730600415288,36.0896,164.22,164.18,17.81413672]
[1730600415861,36.0896,164.22,164.19,17.81413672]
[1730600417385,36.0896,164.22,164.18,17.81413672]
[1730600418377,23.776884,164.19,164.14,17.81413672]
[1730600418566,30.0,164.18,164.17,17.81413672]
[1730600419485,30.0,164.18,164.15,17.81413672]
[1730600419976,30.0,164.18,164.16,17.81413672]
[1730600420287,30.0,164.18,164.17,17.81413672]
[1730600422366,30.0,164.18,164.17,37.81413672]
[1730600422689,6.0881,164.26,164.17,37.81413672]
[1730600422862,1.05894969,164.27,164.25,17.81413672]
[1730600423061,16.2099,164.3,164.2,20.0]
[1730600423281,1.05881658,164.29,164.27,17.81413672]
[1730600423657,1.05881658,164.29,164.28,11.39246127]
[1730600425076,27.60236127,164.34,164.28,11.39246127]
[1730600425077,6.0849,164.34,164.28,11.39246127]
[1730600425296,6.0845,164.36,164.32,11.39246127]
[1730600425578,6.0845,164.36,164.26,6.13]
[1730600425579,1.05840729,164.35,164.33,11.39246127]
[1730600425778,1.05840729,164.35,164.31,17.78827656]
[1730600425973,6.0849,164.34,164.3,17.78827656]
[1730600426167,18.84668385,164.35,164.26,6.13]
[1730600426168,0.300979,164.37,164.33,17.78827656]
[1730600426380,0.300979,164.37,164.36,17.78827656]
[1730600426574,6.384779,164.37,164.35,17.78827656]
[1730600426766,6.384879,164.37,164.35,17.78827656]
[1730600426978,0.300979,164.37,164.34,6.13]
[1730600427180,0.300979,164.37,164.36,17.78827656]
[1730600427682,0.300979,164.37,164.35,17.78827656]
[1730600428265,0.300979,164.37,164.36,17.78827656]
[1730600430167,0.300979,164.37,164.34,17.78827656]
[1730600430373,0.300979,164.37,164.35,17.78827656]
[1730600430783,0.300979,164.37,164.34,17.78827656]
[1730600431088,6.384779,164.37,164.35,17.78827656]
[1730600431298,6.384779,164.37,164.33,17.78827656]
[1730600431484,0.1,164.34,164.21,6.13]
[1730600431676,23.876884,164.29,164.21,6.13]
[1730600431875,0.1,164.28,164.17,6.3455]
[1730600432104,23.776884,164.26,164.17,6.3455]
[1730600432396,23.776884,164.24,164.17,6.3455]
[1730600432971,17.78827656,164.22,164.17,24.13377656]
[1730600433171,17.78827656,164.23,164.17,24.13377656]
[1730600433875,17.78827656,164.22,164.16,17.78827656]
[1730600434692,17.78827656,164.23,164.17,17.78827656]
[1730600434893,17.78827656,164.23,164.18,17.78827656]
[1730600435091,6.0886,164.24,164.19,17.78827656]
[1730600435492,23.87687656,164.24,164.18,17.78827656]
[1730600435713,17.78827656,164.23,164.18,17.78827656]
[1730600436199,23.87727656,164.23,164.18,17.78827656]
[1730600436781,17.78827656,164.22,164.17,17.78827656]
[1730600437102,6.089,164.23,164.18,17.78827656]
[1730600437290,23.87727656,164.23,164.18,17.78827656]
[1730600437491,6.089,164.23,164.19,17.78827656]
[1730600437686,17.78827656,164.24,164.19,17.78827656]
[1730600437886,23.87707656,164.24,164.18,17.78827656]
[1730600438291,6.0888,164.24,164.22,17.78827656]
[1730600439099,6.0879,164.26,164.22,17.78827656]
[1730600440209,21.4063,164.27,164.22,17.78827656]
[1730600440699,39.19457656,164.27,164.22,17.78827656]
[1730600441701,21.4063,164.27,164.22,17.78827656]
[1730600442503,21.3063,164.27,164.22,17.78827656]
[1730600442806,17.78827656,164.25,164.2,17.78827656]
[1730600443001,17.88827656,164.26,164.2,17.78827656]
[1730600443503,0.1,164.26,164.22,17.78827656]
[1730600443712,91.3063,164.27,164.22,17.78827656]
[1730600443904,0.1,164.26,164.22,17.78827656]
[1730600444092,0.1,164.26,164.21,17.78827656]
[1730600444290,17.88827656,164.26,164.21,17.78827656]
[1730600444791,6.0882,164.25,164.21,17.78827656]
[1730600446207,6.0882,164.25,164.16,17.78827656]
[1730600446405,6.0882,164.25,164.24,17.78827656]
[1730600446614,6.0879,164.26,164.24,17.78827656]
[1730600447107,6.0879,164.26,164.25,17.78827656]
[1730600448512,70.0,164.29,164.25,17.78827656]
[1730600448808,10.78248297,164.3,164.28,17.78827656]
[1730600449009,10.78248297,164.3,164.24,17.78827656]
[1730600449010,6.0864,164.3,164.29,17.78827656]
[1730600449199,6.0864,164.3,164.26,17.78827656]
[1730600449596,1.05899976,164.29,164.26,17.78827656]
[1730600451613,1.05899976,164.29,164.28,17.78827656]
[1730600451829,6.0856,164.33,164.28,17.78827656]
[1730600452120,28.70778107,164.34,164.24,17.78827656]
[1730600452121,1.05877641,164.32,164.3,17.78827656]
[1730600454012,1.05877641,164.32,164.29,17.78827656]
[1730600454353,7.14467641,164.32,164.28,17.78827656]
[1730600455812,7.14467641,164.32,164.29,17.78827656]
[1730600456120,7.14467641,164.32,164.28,17.78827656]
[1730600457026,7.14467641,164.32,164.29,17.78827656]
[1730600457404,7.14467641,164.32,164.3,17.78827656]
[1730600457802,7.14467641,164.32,164.29,17.78827656]
[1730600459034,7.14467641,164.32,164.28,17.78827656]
[1730600459202,7.14467641,164.32,164.3,17.78827656]
[1730600462323,38.04145677,164.37,164.31,35.57655312]
[1730600462507,0.300979,164.37,164.36,17.78827656]
[1730600462901,6.384779,164.37,164.29,6.4987]
[1730600463305,0.300979,164.37,164.35,17.78827656]
[1730600463722,6.384879,164.37,164.29,6.4987]
[1730600463902,6.384879,164.37,164.33,17.78827656]
[1730600464315,17.78827656,164.35,164.3,17.78827656]
[1730600464506,17.78827656,164.35,164.29,24.28697656]
[1730600464708,23.776884,164.34,164.3,17.78827656]
[1730600465414,23.776884,164.36,164.31,17.78827656]
[1730600466210,29.861384,164.36,164.31,17.78827656]
[1730600466414,29.861384,164.36,164.33,17.78827656]
[1730600466628,29.861384,164.36,164.32,17.78827656]
[1730600468211,18.08925556,164.37,164.29,6.4987]
[1730600468513,24.17315556,164.37,164.31,17.78827656]
[1730600469016,17.78827656,164.36,164.31,17.78827656]
[1730600469533,17.78827656,164.36,164.3,17.78827656]
[1730600471415,17.78827656,164.32,164.29,6.4987]
[1730600471608,17.78827656,164.31,164.26,17.78827656]
[1730600471808,17.78827656,164.31,164.25,24.28697656]
[1730600472041,17.78827656,164.31,164.26,17.78827656]
[1730600472718,17.78827656,164.29,164.25,6.4987]
[1730600472907,6.0861,164.31,164.25,6.4987]
[1730600472908,17.78827656,164.26,164.25,6.4987]
[1730600473107,17.78827656,164.26,164.2,22.6008]
[1730600473314,17.78827656,164.26,164.21,17.78827656]
[1730600474033,17.78827656,164.28,164.22,17.78827656]
[1730600474212,17.78827656,164.28,164.23,17.78827656]
[1730600475529,17.78827656,164.32,164.27,6.4987]
[1730600475708,17.78827656,164.29,164.27,6.4987]
[1730600476515,17.78827656,164.28,164.27,6.4987]
[1730600477939,17.78827656,164.29,164.27,6.4987]
[1730600479348,17.78827656,164.3,164.27,6.4987]
[1730600479631,17.78827656,164.32,164.27,40.83117656]
[1730600479839,17.78827656,164.33,164.27,40.83117656]
[1730600480025,17.78827656,164.35,164.3,17.78827656]
[1730600480232,17.78827656,164.33,164.27,23.0429]
[1730600480430,17.78827656,164.33,164.27,40.83117656]
[1730600480828,17.78827656,164.32,164.27,23.0429]
[1730600481223,17.78827656,164.31,164.27,23.0429]
[1730600481436,17.78827656,164.3,164.27,23.0429]
[1730600483219,17.78827656,164.28,164.27,6.4987]
[1730600483429,17.78827656,164.28,164.23,23.1763]
[1730600483632,17.78827656,164.27,164.23,23.1763]
[1730600485432,17.78827656,164.28,164.23,40.96457656]
[1730600487929,17.78827656,164.29,164.23,40.96457656]
[1730600488348,17.78827656,164.28,164.23,40.96457656]
[1730600489426,17.78827656,164.27,164.23,23.1763]
[1730600489932,17.78827656,164.28,164.23,40.96457656]
[1730600490745,17.78827656,164.27,164.23,23.1763]
[1730600491120,17.78827656,164.26,164.23,6.6321]
[1730600491736,17.78827656,164.25,164.23,6.6321]
[1730600491941,17.78827656,164.25,164.19,40.96457656]
[1730600492248,17.78827656,164.25,164.2,17.78827656]
[1730600492549,17.78827656,164.25,164.19,23.1763]
[1730600492550,17.78827656,164.25,164.19,40.96457656]
[1730600493046,17.78827656,164.24,164.19,40.96457656]
[1730600494143,17.78827656,164.21,164.19,6.6321]
[1730600494557,17.78827656,164.23,164.19,6.6321]
[1730600494731,17.78827656,164.22,164.19,6.6321]
[1730600497440,17.78827656,164.24,164.19,6.6321]
[1730600498451,17.78827656,164.23,164.19,6.6321]
[1730600498759,17.78827656,164.22,164.19,6.6321]
[1730600498943,6.0882,164.25,164.19,6.6321]
[1730600499150,17.78827656,164.21,164.19,6.6321]
[1730600499454,17.78827656,164.21,164.15,40.96457656]
[1730600501241,17.78827656,164.23,164.18,17.78827656]
[1730600502655,23.87697656,164.24,164.18,17.78827656]
[1730600503459,1.05940134,164.23,164.18,17.78827656]
[1730600505139,17.78827656,164.19,164.15,6.6321]
[1730600505841,17.78827656,164.19,164.14,17.78827656]
[1730600506466,17.78827656,164.16,164.11,40.96457656]
[1730600506642,17.78827656,164.16,164.11,24.42037656]
[1730600506961,17.78827656,164.18,164.12,17.78827656]
[1730600507159,27.03339418,164.2,164.15,17.78827656]
[1730600507358,23.87837656,164.2,164.15,17.78827656]
[1730600508259,30.0,164.16,164.15,17.78827656]
[1730600513148,30.0,164.16,164.15,35.57655312]
[1730600513342,30.0,164.16,164.15,17.78827656]
[1730600515249,30.0,164.16,164.15,35.57655312]
[1730600515768,36.0916,164.16,164.12,17.78827656]
[1730600515944,36.1916,164.16,164.12,17.78827656]
[1730600516264,30.0,164.15,164.09,0.300979]
[1730600516470,30.0,164.15,164.14,17.78827656]
[1730600517158,30.0,164.15,164.13,17.78827656]
[1730600517476,30.0,164.15,164.12,17.78827656]
[1730600517656,30.0,164.15,164.09,0.300979]
[1730600517657,30.0,164.15,164.13,11.41457406]
[1730600518655,70.1,164.13,164.09,0.300979]
[1730600518857,30.0,164.1,164.09,0.300979]
[1730600519063,30.0,164.1,164.09,11.71555306]
[1730600519655,30.0,164.1,164.09,18.14058448]
[1730600520745,30.0,164.1,164.09,0.300979]
[1730600521551,30.0,164.1,164.09,18.14058448]
[1730600524547,30.0,164.1,164.09,24.19198448]
[1730600525168,2.45266988,164.14,164.09,24.19198448]
[1730600525380,1.3938557,164.14,164.13,17.83960548]
[1730600525560,2.45265604,164.14,164.13,17.83960548]
[1730600525763,1.3938557,164.14,164.13,17.83960548]
[1730600526462,1.05877406,164.16,164.13,17.83960548]
[1730600526762,70.1,164.13,164.09,18.14058448]
[1730600527174,30.0,164.11,164.09,18.14058448]
[1730600527560,30.0,164.11,164.1,17.83960548]
[1730600528565,30.0,164.11,164.09,0.300979]
[1730600529065,30.0,164.11,164.09,18.14058448]
[1730600529685,30.0,164.11,164.09,0.300979]
[1730600529874,30.0,164.11,164.1,17.83960548]
[1730600530062,30.0,164.11,164.09,18.14058448]
[1730600530874,70.1,164.1,164.09,0.300979]
[1730600531466,94.13340548,164.1,164.09,0.300979]
[1730600531669,94.13340548,164.1,164.03,17.83960548]
[1730600531670,137.58457031,164.1,164.03,17.83960548]
[1730600531976,137.58457031,164.1,164.01,18.14058448]
[1730600531977,0.2,164.04,164.01,18.14058448]
[1730600532159,0.2,164.04,164.01,0.300979]
[1730600532585,18.03960548,164.02,164.01,0.300979]
[1730600532782,19.43388631,164.02,164.01,0.300979]
[1730600532957,1.59428083,164.02,164.01,0.300979]
[1730600533576,1.49428083,164.02,164.01,0.300979]
[1730600533780,1.39428083,164.02,164.01,0.300979]
[1730600534081,1.39428083,164.02,164.01,18.14058448]
[1730600534580,1.39428083,164.02,164.01,0.300979]
[1730600534773,1.49428083,164.02,164.01,0.300979]
[1730600535790,19.43388631,164.02,164.01,0.300979]
[1730600536268,25.53068631,164.02,164.01,0.300979]
[1730600536460,32.80555987,164.02,164.01,0.300979]
[1730600538066,56.58244387,164.02,164.01,0.300979]
[1730600538271,76.58244387,164.02,164.01,0.300979]
[1730600540885,46.70875987,164.02,164.01,0.300979]
[1730600541680,46.70875987,164.02,163.96,17.83960548]
[1730600541888,87.93960548,164.01,163.96,17.83960548]
[1730600542392,25.31447904,164.0,163.95,17.83960548]
[1730600542558,17.83960548,163.98,163.93,23.89100548]
[1730600543677,17.83960548,163.99,163.94,17.83960548]
[1730600543880,25.11447904,164.0,163.94,17.83960548]
[1730600544085,25.11447904,164.0,163.95,17.83960548]
[1730600544688,25.11447904,164.0,163.94,17.83960548]
[1730600544983,17.83960548,163.99,163.94,17.83960548]
[1730600545362,87.93960548,163.99,163.93,23.89100548]
[1730600545567,17.83960548,163.95,163.93,6.0514]
[1730600545776,0.1,163.98,163.93,6.0514]
[1730600545777,17.83960548,163.97,163.93,6.0514]
[1730600546267,18.89698467,163.96,163.93,6.0514]
[1730600547215,18.89698467,163.96,163.92,0.300979]
[1730600547486,17.83960548,163.93,163.92,0.300979]
[1730600548468,17.83960548,163.94,163.92,0.300979]
[1730600548693,70.0,163.95,163.92,0.300979]
[1730600548863,17.83960548,163.95,163.92,0.300979]
[1730600549070,17.83960548,163.93,163.92,0.300979]
[1730600549272,17.93960548,163.93,163.92,0.300979]
[1730600549572,45.60279428,163.93,163.92,0.300979]
[1730600549966,45.70279428,163.93,163.92,0.300979]
[1730600550189,45.60279428,163.93,163.92,0.300979]
[1730600550768,45.70279428,163.93,163.92,0.300979]
[1730600551271,51.80289428,163.93,163.92,0.300979]
[1730600551588,94.81366459,163.93,163.92,0.300979]
[1730600551766,51.03678059,163.93,163.92,0.300979]
[1730600551964,71.03678059,163.93,163.92,0.300979]
[1730600552166,89.31678059,163.93,163.92,0.300979]
[1730600552567,70.1,163.86,163.84,0.300979]
[1730600552871,17.83960548,163.85,163.84,0.300979]
[1730600553272,23.67256471,163.85,163.84,0.300979]
[1730600553471,48.84372954,163.85,163.84,0.300979]
[1730600553681,105.06333502,163.85,163.84,0.300979]
[1730600553877,105.06333502,163.85,163.76,0.300979]
[1730600553878,70.0,163.8,163.76,0.300979]
[1730600554075,17.83960548,163.77,163.76,0.300979]
[1730600554288,87.93960548,163.77,163.76,0.300979]